Cogmind - Beta 12 --- EXPLORER MODE // 2023.12.28 @ 09:25:10 Player: viper Result: Self-destructed Performance ------------- Evolutions (8) 4000 Regions Visited (19) 3800 Robots Destroyed (468) 2340 Value Destroyed (22971) 22971 Prototype IDs (25) 500 Alien Tech Used (3) 600 Bonus (4832) 4832 TOTAL SCORE: 39043 Bonus ------- High Alert Combat Kills 718 Follower Combat Kills 734 Entered DSFs 500 A7 Reached Mainframe 300 Used Core Reset Matrix 3000 Friendly Fire -420 Cogmind --------- Core Integrity 163/1450 Matter 123/300 Energy 100/100 System Corruption 25% Temperature Cool (0) Movement Core (50) Location -2/Research Parts ------- > --- POWER (3) -------- (None) > --- PROPULSION (4) --- (None) > --- UTILITY (12) ----- Advanced Targeting Computer Advanced Targeting Computer Advanced Target Analyzer > --- WEAPON (5) ------- (None) > --- INVENTORY (5) ---- Micro Antimatter Reactor Armored Heavy Treads Heavy Disruptor Cannon Peak State ------------ > --- POWER ------------ Particle Reactor Micro Antimatter Reactor Micro Antimatter Reactor > --- PROPULSION ------- Flexi-carbon Leg Flexi-carbon Leg Flexi-carbon Leg Myomer Leg > --- UTILITY ---------- Huge Storage Unit Improved Energy Well Advanced Weight Redist. System Spectral Analyzer Advanced Targeting Computer Advanced Target Analyzer Recoil Nullifier Transmission Jammer Improved Reaction Control System Experimental Power Shielding Phase Armor > --- WEAPON ----------- Compact HERF Cannon Mass Driver Hypervelocity Gauss Cannon Hardcell Cannon Linear Accelerator > --- INVENTORY -------- Light Antimatter Reactor Light Antimatter Reactor Micro Antimatter Reactor Armored Heavy Treads Flexi-carbon Leg Flexi-carbon Leg Flexi-carbon Leg Myomer Leg Advanced Heat Sink Advanced Heat Sink Advanced Heat Sink Advanced Heat Sink Advanced Targeting Computer Advanced Targeting Computer Advanced Particle Charger Quantum Rifle Heavy Disruptor Cannon Railgun Mass Driver Mass Driver Linear Accelerator Linear Accelerator [Rating: 175] Favorites ----------- Power Micro Antimatter Reactor Engine Light Angular Momentum Engine Power Core Light Fission Core Reactor Micro Antimatter Reactor Propulsion Armored Medium Treads Treads Armored Medium Treads Leg Myomer Leg Utility Improved Targeting Computer Device Advanced Heat Sink Storage Huge Storage Unit Processor Improved Targeting Computer Hackware Improved System Shield Protection Improved Medium Armor Plating Artifact Phase Armor Weapon Gauss Cannon Energy Gun Quantum Rifle Energy Cannon Compact HERF Cannon Ballistic Gun Enhanced Autogun Ballistic Cannon Gauss Cannon Launcher Rocket Launcher Special Weapon Advanced Remote Datajack Slashing Weapon Greatsword Build | -11 -10 -10 -9 -9 -8 -7 -7 -6 -5 -5 -5 -5 -5 -4 -4 -4 -3 -3 -2 ------- Run | Jun Mat Min Mat Min Mat Fac DSF Fac Fac Ext Cet Arc Hub Fac Upp Upp Res Qua Res Slots Evolved 17 | . 1 . 2 . 2 2 . 2 2 . . . . 2 . . 2 . 2 Power 2 | . . . 1 . . . . . . . . . . 1 . . . . . Propulsion 2 | . . . . . . 1 . . 1 . . . . . . . . . . Utility 10 | . 1 . 1 . 2 . . 2 1 . . . . 1 . . 2 . . Weapon 3 | . . . . . . 1 . . . . . . . . . . . . 2 Parts Attached 373 | 7 3 2 5 3 6 2 6 13 6 18 2 4 29 68 5 3 77 51 63 Power 62 | 1 1 2 1 1 1 . 2 1 1 . 1 . 3 15 1 1 13 6 11 Engine 7 | 1 1 2 1 1 . . . 1 . . . . . . . . . . . Core 12 | . . . . . 1 . 2 . . . . . 1 6 . 1 1 . . Reactor 43 | . . . . . . . . . 1 . 1 . 2 9 1 . 12 6 11 Propulsion 66 | 2 . . 2 . . 1 3 2 1 8 . 1 8 12 . 1 10 7 8 Treads 46 | 2 . . 2 . . 1 3 2 1 8 . 1 8 12 . 1 5 . . Leg 20 | . . . . . . . . . . . . . . . . . 5 7 8 Wheel . | . . . . . . . . . . . . . . . . . . . . Hover . | . . . . . . . . . . . . . . . . . . . . Flight . | . . . . . . . . . . . . . . . . . . . . Utility 159 | 2 2 . 1 . 3 . 1 7 3 6 1 2 13 25 3 . 38 27 25 Device 90 | 1 . . . . 1 . . 3 3 3 . 2 5 16 1 . 26 13 16 Storage 28 | 1 1 . . . 1 . . 2 . . 1 . 7 3 . . 5 5 2 Processor 24 | . 1 . . . . . . 1 . 1 . . . 3 1 . 5 6 6 Hackware 2 | . . . . . . . . 1 . . . . . 1 . . . . . Protection 13 | . . . 1 . 1 . 1 . . 2 . . 1 2 1 . 2 1 1 Artifact 2 | . . . . . . . . . . . . . . . . . . 2 . Weapon 86 | 2 . . 1 2 2 1 . 3 1 4 . 1 5 16 1 1 16 11 19 Energy Gun 7 | . . . . . . . . . . . . . . 3 . . . . 4 Energy Cannon 7 | . . . . . . . . . . . . . . 3 . . 1 1 2 Ballistic Gun 33 | 2 . . 1 2 2 1 . 2 1 1 . . 1 5 . 1 6 6 2 Ballistic Cannon 30 | . . . . . . . . 1 . 2 . . 4 2 1 . 9 4 7 Launcher 5 | . . . . . . . . . . 1 . . . 2 . . . . 2 Special Weapon 2 | . . . . . . . . . . . . . . . . . . . 2 Impact Weapon . | . . . . . . . . . . . . . . . . . . . . Slashing Weapon 2 | . . . . . . . . . . . . 1 . 1 . . . . . Piercing Weapon . | . . . . . . . . . . . . . . . . . . . . Special Melee Weapon . | . . . . . . . . . . . . . . . . . . . . Unidentified Prototypes 19 | . . . . . 1 . . 2 1 . 2 . 4 2 . . 4 3 . Corrupted Parts 2 | . . . . . . . . . . 1 . . . . . . . . 1 System Corruption 15 | . . . . . . . . . . 5 . . . . . . . . 10 Parts Lost 144 | . . . 1 . . . 1 3 3 8 1 4 2 33 . . 21 22 45 Power 25 | . . . . . . . . . . . 1 1 . 10 . . 3 4 6 Propulsion 28 | . . . . . . . . . . 4 . . . 5 . . 5 5 9 Utility 49 | . . . . . . . 1 2 2 1 . 3 2 6 . . 9 6 17 Weapon 42 | . . . 1 . . . . 1 1 3 . . . 12 . . 4 7 13 Highest Loss Streak 20 | . . . 1 . . . 1 1 3 5 1 4 1 6 . . 5 4 20 To Critical Strikes 4 | . . . . . . . . . . . 1 . . . . . . . 3 Average Slot Usage (%) 92 | . 96 99 95 100 100 . 99 89 99 93 99 90 92 91 91 95 88 95 88 Engine 1 | . 9 11 20 20 9 . 4 . 5 5 5 3 . . . . . . . Core 2 | . . . . . 6 . 9 11 1 . . . 2 2 5 5 1 . . Reactor 7 | . . . . . . . . . 3 5 4 5 7 9 6 10 11 12 11 Treads 13 | . 25 25 20 20 16 . 21 18 22 20 22 22 22 18 15 15 7 . . Leg 3 | . . . . . . . . . . . . . . . . . 3 16 14 Device 14 | . 12 12 10 10 16 . 10 10 12 18 14 14 10 15 22 15 14 19 18 Storage 12 | . 12 12 10 10 8 . 7 8 16 15 12 14 16 17 5 5 9 11 4 Processor 12 | . 12 12 10 10 8 . 7 6 5 2 5 5 5 10 12 15 23 18 14 Hackware 2 | . . . . . . . . 1 5 5 5 5 5 5 5 5 . . . Protection 4 | . . . 9 10 16 . 17 12 8 5 11 6 4 . 5 10 3 . 2 Ballistic Gun 7 | . 25 25 16 20 16 . 21 17 16 7 11 6 . 4 5 5 4 6 2 Ballistic Cannon 6 | . . . . . . . . . . 4 5 1 15 6 6 9 6 4 11 Naked Turns . | . . . . . . . . . . . . . . . . . . . . Heaviest Build 234 | 20 30 30 34 36 40 43 48 62 67 87 85 85 96 153 165 165 161 193 234 Greatest Support 135 | 40 40 40 40 40 40 60 76 80 108 111 111 111 111 135 135 135 128 112 94 Greatest Overweight (x) 46 | 6 . . 1 . . . 2 . . 2 . . 2 3 1 1 46 3 37 Average Overweight (x) . | 1 . . . . . . . . . . . . . . 1 1 2 1 1 Largest Inventory Capacity 25 | 10 15 15 15 15 15 15 15 15 15 15 15 15 15 25 25 25 25 25 25 Average Capacity 20 | 9 14 15 15 15 15 15 15 15 15 15 15 15 15 20 25 25 25 25 24 Most Carried 25 | 7 9 13 12 13 15 13 15 15 15 15 15 15 15 20 25 25 25 25 25 Average Carried 16 | 3 6 10 10 11 13 12 13 12 12 14 14 13 14 11 22 24 21 21 20 Final Capacity 25 | 10 15 15 15 15 15 15 15 15 15 15 15 15 15 25 25 25 25 25 5 Final Carried 25 | 6 9 13 12 13 14 12 14 12 15 14 15 14 12 20 25 24 21 24 5 Class Distribution -------------------- 41% | Hacker-Gunner 26% | Scavenger-Gunner 18% | Hacker-Mutant 6% | Scavenger-Mutant 4% | Hacker-Skirmisher Dominant Class ---------------- Hacker-Mutant | -10/Materials Hacker-Mutant | -10/Mines Hacker-Mutant | -9/Materials Hacker-Mutant | -9/Mines Hacker-Mutant | -8/Materials Hacker-Mutant | -7/Factory Hacker-Gunner | -7/DSF Hacker-Skirmisher | -6/Factory Hacker-Gunner | -5/Factory Hacker-Mutant | -5/Extension Hacker-Gunner | -5/Cetus Hacker-Mutant | -5/Archives Hacker-Gunner | -5/Hub_04(d) Hacker-Gunner | -4/Factory Hacker-Gunner | -4/Upper Caves Scavenger-Gunner | -4/Upper Caves Scavenger-Gunner | -3/Research Scavenger-Gunner | -3/Quarantine Scavenger-Gunner | -2/Research Resources | -11 -10 -10 -9 -9 -8 -7 -7 -6 -5 -5 -5 -5 -5 -4 -4 -4 -3 -3 -2 ----------- Run | Jun Mat Min Mat Min Mat Fac DSF Fac Fac Ext Cet Arc Hub Fac Upp Upp Res Qua Res Matter Collected 21452 | 276 391 401 86 72 212 . 315 1328 573 612 349 25 1949 4888 334 122 5911 1817 1791 Remotely 2038 | . . . . . 212 . 171 . . . . . . . . . 1655 . . Salvage Created 23128 | 51 414 141 144 80 266 . 376 1909 915 624 141 80 1725 5227 230 50 6206 2782 1767 Parts 1057 | 1 18 10 10 6 16 . 12 86 50 27 2 3 85 219 7 3 292 115 95 Haulers Intercepted 18 | . . . . . . . . . . 1 . . 7 2 . . 6 2 . Recyclers Shooed 15 | . . 1 . . . . . 4 2 . . . . 7 . . 1 . . Parts Field Recycled . | . . . . . . . . . . . . . . . . . . . . Retrieved Matter . | . . . . . . . . . . . . . . . . . . . . Parts Self-Destructed . | . . . . . . . . . . . . . . . . . . . . Prevented . | . . . . . . . . . . . . . . . . . . . . Kills | -11 -10 -10 -9 -9 -8 -7 -7 -6 -5 -5 -5 -5 -5 -4 -4 -4 -3 -3 -2 ------- Run | Jun Mat Min Mat Min Mat Fac DSF Fac Fac Ext Cet Arc Hub Fac Upp Upp Res Qua Res Combat Hostiles Destroyed 359 | . 7 3 3 2 4 . 7 24 10 14 4 1 30 98 3 3 77 41 28 Melee 1 | . . . . . . . . . . . . 1 . . . . . . . Guns 166 | . 7 3 3 2 4 . 7 22 10 9 3 . . 33 1 . 31 26 5 Cannons 180 | . . . . . . . . 2 . 4 1 . 30 55 2 3 46 15 22 AOE 11 | . . . . . . . . . . 1 . . . 10 . . . . . Classes Destroyed 21 | 1 2 2 1 1 . . . 7 . 1 . . . 4 . . . 2 . Worker 33 | . . . . . . . . 2 1 3 . . 9 7 . . 8 2 1 Builder 28 | . . 1 . . . . . 4 1 1 . . 7 4 . . 8 . 2 Tunneler 3 | . . . . . . . . . . . . . . 1 . . 2 . . Hauler 18 | . . . . . . . . . . 1 . . 7 2 . . 6 2 . Recycler 24 | 1 1 . . . 1 . . 4 2 . . . 1 4 . . 9 . 1 Mechanic 2 | . . . . . . . . . . . . . . 1 . . 1 . . Operator 6 | . . . . . . . . 1 2 . . . 1 1 . . 1 . . Watcher 25 | . 1 . . . 1 . . 2 . . . . 4 6 . . 9 . 2 Swarmer 33 | . . . . . . . . 3 . 5 . . 3 7 1 3 11 . . Saboteur 1 | . . . . . . . . . . . . . . 1 . . . . . Grunt 134 | . 7 2 2 1 3 . 6 10 6 1 . . 4 39 1 . 28 18 6 Brawler 9 | . . . . . . . . 2 1 . . . 1 5 . . . . . Duelist 9 | . . . . 1 . . 1 2 . . . . 1 3 . . 1 . . Researcher 1 | . . . . . . . . . . . . . . . . . . 1 . Sentry 33 | . . . 1 . 1 . . 2 . 4 . 1 8 7 1 . 3 3 2 Demolisher 1 | . . 1 . . . . . . . . . . . . . . . . . Specialist 3 | . . . . . . . . . . . . . . . . . . 3 . Hunter 38 | . . . . . . . . 2 3 2 3 . 5 5 . . 8 6 4 Programmer 90 | . . . . . . . . 2 . . . . 7 31 . . 23 11 16 Heavy 2 | . . . . . . . . . . . . . . 1 . . 1 . . Behemoth 6 | . . . . . . . . 1 . 2 . . 1 . . . 2 . . Cetus Guard 1 | . . . . . . . . . . . 1 . . . . . . . . Guerrilla 1 | . . . . . . . . . . 1 . . . . . . . . . Best Kill Streak 10 | 1 4 2 3 2 4 . 5 5 7 6 3 1 8 10 3 3 10 9 5 Combat Bots Only 9 | . 4 2 3 2 2 . 5 5 7 4 3 1 7 8 3 3 9 8 5 Max Kills in Single Turn 3 | 1 1 1 1 1 1 . 1 1 1 3 1 1 2 2 1 1 2 2 1 Gunslinging 1 | . . . . . . . . . . . . . . . . . . 1 . Exploded 2 | . . . . . . . . . . 1 . . . 2 . . . . . Melee 1 | . . . . . . . . . . . . 1 . . . . . . . Uniques/NPCs Destroyed . | . . . . . . . . . . . . . . . . . . . . Combat | -11 -10 -10 -9 -9 -8 -7 -7 -6 -5 -5 -5 -5 -5 -4 -4 -4 -3 -3 -2 -------- Run | Jun Mat Min Mat Min Mat Fac DSF Fac Fac Ext Cet Arc Hub Fac Upp Upp Res Qua Res Damage Taken 27780 | . 199 210 118 . 167 . 267 1141 539 1098 338 656 1638 7294 167 51 5320 3111 5466 Core 3947 | . 39 33 11 . 20 . 10 203 23 137 23 . 151 787 25 . 810 388 1287 Absorbed by Shields 176 | . . . . . . . . . . 135 41 . . . . . . . . Redirected to Core 385 | . . . . . . . . . . . . . . . . . . 157 228 Redirected to Shielding 459 | . . . . . 22 . 40 118 24 . . . . . . 9 92 . 154 Regen/Repaired (Parts) 160 | . . . . . . . . . . . . . . 80 . . 53 . 27 Core Remaining (%) 71 | 100 . 71 . 97 96 . 98 76 . . . . 66 . . 29 . 7 . Volleys Fired 1116 | 1 25 13 11 4 19 . 20 106 46 33 19 1 101 301 7 7 213 109 80 Largest 5 | 2 2 2 2 2 2 . 3 3 3 3 3 3 3 3 3 3 3 3 5 Hottest 343 | 40 40 40 40 46 50 . 75 90 76 125 96 96 144 245 188 159 198 176 343 Shots Fired 2969 | 2 50 26 17 8 38 . 60 290 137 85 57 3 302 702 22 19 617 278 256 Gun 1560 | 2 50 26 17 8 38 . 60 268 137 48 38 2 . 270 7 6 334 180 69 Cannon 1361 | . . . . . . . . 22 . 32 19 1 302 392 15 13 283 98 184 Launcher 45 | . . . . . . . . . . 5 . . . 40 . . . . . Special 3 | . . . . . . . . . . . . . . . . . . . 3 Kinetic 2786 | 2 50 26 17 8 38 . 60 290 137 80 57 3 302 602 17 19 607 274 197 Thermal 88 | . . . . . . . . . . . . . . 60 5 . . . 23 Explosive 45 | . . . . . . . . . . 5 . . . 40 . . . . . Electromagnetic 47 | . . . . . . . . . . . . . . . . . 10 4 33 Robot Hit Streak 74 | 2 19 8 18 25 27 . 47 55 45 34 21 2 57 74 9 13 34 28 31 Robot Miss Streak 3 | . 3 1 . . 1 . 1 3 2 3 2 1 1 3 1 2 3 3 2 Penetration Max 2 | . . . . . . . . . . . 1 . 1 2 . . 2 2 1 Secondary Targets 23 | . 1 . . . . . 3 2 3 1 . . . . . . 8 5 . Max Gunslinging Chain 1 | . 1 . . . . . 1 1 1 1 . . . . . . 1 1 . Shots Hit Robots 2329 | 2 39 21 17 7 35 . 56 234 115 73 39 7 233 550 15 11 460 221 194 Core Hits 1142 | 1 17 10 7 4 10 . 19 96 55 87 32 4 98 294 8 3 224 112 61 Critical Kills 46 | . 1 . . . 1 . . 2 . . . . . 3 . 2 19 14 4 Critical Parts Destroyed 48 | . 1 . . . 1 . . 3 . . 1 . . 4 . 1 20 11 6 Critical Strikes 227 | . 2 . . . 2 . . 7 . 3 2 . 35 43 . 3 74 30 26 Burn 1 | . . . . . . . . . . . . . . 1 . . . . . Destroy 95 | . 2 . . . 2 . . 5 . . 1 . . 7 . 3 39 25 11 Blast 126 | . . . . . . . . 2 . 3 1 . 35 34 . . 33 5 13 Corrupt 4 | . . . . . . . . . . . . . . . . . 2 . 2 Sever 1 | . . . . . . . . . . . . . . 1 . . . . . Melee Attacks 8 | . . . . . . . . . . . . 7 . 1 . . . . . Impact . | . . . . . . . . . . . . . . . . . . . . Slashing 8 | . . . . . . . . . . . . 7 . 1 . . . . . Piercing . | . . . . . . . . . . . . . . . . . . . . Sneak Attacks . | . . . . . . . . . . . . . . . . . . . . Combat Hostiles . | . . . . . . . . . . . . . . . . . . . . Follow-up Attacks . | . . . . . . . . . . . . . . . . . . . . Damage Inflicted 67892 | 30 479 277 219 113 590 . 947 4257 1909 2635 1222 273 7169 19041 468 236 14886 6642 6499 Guns 28988 | 30 479 269 219 101 590 . 947 3630 1909 1205 747 44 . 6649 127 74 6697 3770 1501 Cannons 35328 | . . . . . . . . 582 . 956 475 42 7023 9996 341 162 8093 2845 4813 Explosions 2917 | . . . . . . . . . . 449 . . . 2298 . . 46 . 124 Melee 221 | . . . . . . . . . . . . 187 . 34 . . . . . Ramming 438 | . . 8 . 12 . . . 45 . 25 . . 146 64 . . 50 27 61 Kinetic 60953 | 30 479 269 219 101 590 . 947 4212 1909 2161 1222 86 7023 15259 299 236 14703 6477 4731 Thermal 2545 | . . . . . . . . . . . . . . 1694 169 . . . 682 Explosive 2465 | . . . . . . . . . . 449 . . . 1970 . . 46 . . Electromagnetic 1270 | . . . . . . . . . . . . . . 20 . . 87 138 1025 Impact . | . . . . . . . . . . . . . . . . . . . . Slashing 221 | . . . . . . . . . . . . 187 . 34 . . . . . Piercing . | . . . . . . . . . . . . . . . . . . . . Highest Corruption 25 | . 1 1 . . . . . 1 . 5 . . 5 22 22 22 12 19 25 Average Corruption 9 | . 1 1 . . . . . 1 . 4 . . 1 12 22 22 7 10 17 Corruption Purged 10 | . . . . . . . . . . 5 . . 5 . . . . . . Corruption Blocked . | . . . . . . . . . . . . . . . . . . . . Effects 545 | . 6 . . . . . . 3 . 10 . . 9 191 47 9 157 64 49 Message Errors 130 | . 1 . . . . . . . . 1 . . 1 44 15 . 36 18 14 Matter Fused 136 | . 3 . . . . . . 2 . 4 . . 1 49 11 1 48 9 8 Heat Flow Errors 56 | . . . . . . . . . . . . . 1 20 7 1 15 5 7 Energy Discharges 63 | . . . . . . . . 1 . 2 . . 1 24 5 1 17 5 7 Parts Rejected 3 | . 1 . . . . . . . . . . . . 2 . . . . . Parts Fused 5 | . 1 . . . . . . . . 1 . . 1 . . . 1 1 . Data Loss (minor) 48 | . . . . . . . . . . 1 . . . 17 4 . 15 10 1 Data Loss (major) 23 | . . . . . . . . . . . . . 1 10 . 1 7 3 1 Misfires 21 | . . . . . . . . . . . . . 1 6 3 1 6 3 1 Alerts 7 | . . . . . . . . . . 1 . . . 4 . 1 1 . . Misdirections 7 | . . . . . . . . . . . . . . 3 . . 3 1 . Weapon Failures 46 | . . . . . . . . . . . . . 2 12 2 3 8 9 10 Overload Shots . | . . . . . . . . . . . . . . . . . . . . Overflow Damage 978 | . . . . . . . . 20 . 3 14 . 64 338 24 . 266 90 159 Projectiles 938 | . . . . . . . . 20 . . 14 . 63 304 24 . 266 90 157 Explosions 39 | . . . . . . . . . . 3 . . . 34 . . . . 2 Melee 1 | . . . . . . . . . . . . . 1 . . . . . . Knockbacks 216 | . . . . . . . . 1 . 1 1 . 39 88 . 1 44 11 30 Impact 1 | . . . . . . . . . . . . . . 1 . . . . . Kinetic 203 | . . . . . . . . 1 . 1 1 . 39 80 . 1 41 10 29 Secondary 12 | . . . . . . . . . . . . . . 7 . . 3 1 1 Self-Inflicted Damage 315 | . . . . . . . . . . . . . . 215 . . 78 . 22 Shots 13 | . . . . . . . . . . . . . . 11 . . 1 . 1 Rammed 33 | . . 3 . 1 . . . 6 . 5 . . 8 4 . . 5 . 1 Targets Rammed 52 | . . 4 . 1 . . . 7 . 5 . . 12 6 . . 7 2 8 Kicked 11 | . . . . . . . . . . . . . . . . . 2 2 7 Crushed 8 | . . 1 . . . . . 1 . . . . 4 2 . . . . . Highest Temperature 807 | . 15 27 4 20 142 . 33 430 11 . . . 369 225 366 693 807 413 688 Average Temperature 126 | . 7 13 2 9 49 . 8 119 11 . . . 96 71 70 231 148 154 226 Received Heat Transfer 5177 | . 183 135 87 . 126 . 234 378 198 281 31 144 255 1716 72 . 788 351 198 Effects 103 | . . . . . . . . 8 . . . . 5 . . 13 37 8 32 Shutdowns 42 | . . . . . . . . 1 . . . . 4 . . 4 15 5 13 Energy Bleed 12 | . . . . . . . . 4 . . . . 1 . . 2 4 . 1 Interference 24 | . . . . . . . . 3 . . . . . . . 3 7 2 9 Matter Decay 9 | . . . . . . . . . . . . . . . . 1 5 . 3 Short Circuit 8 | . . . . . . . . . . . . . . . . 3 2 . 3 Damage (minor) 2 | . . . . . . . . . . . . . . . . . . 1 1 Damage (major) 4 | . . . . . . . . . . . . . . . . . 2 . 2 Damage (core) 2 | . . . . . . . . . . . . . . . . . 2 . . Siege Activations . | . . . . . . . . . . . . . . . . . . . . Robots Corrupted 1 | . . . . . . . . . . . . . . . . . . . 1 Combat Hostiles 1 | . . . . . . . . . . . . . . . . . . . 1 Parts Fried 5 | . . . . . . . . . . . 3 . . . . . . . 2 Impact Corruptions 2 | . . . . . . . . . . . . . 1 . . . . 1 . Robots Melted . | . . . . . . . . . . . . . . . . . . . . Combat Hostiles . | . . . . . . . . . . . . . . . . . . . . Parts Melted 8 | . . . . . . . . . . . . . . 2 . . . . 6 Heat Transferred 3165 | . . . . . . . . . . . . . . 2166 185 . . . 814 Parts Sabotaged 4 | . . . . . . . . . . . . . . 4 . . . . . Parts Stolen . | . . . . . . . . . . . . . . . . . . . . Parts Stripped . | . . . . . . . . . . . . . . . . . . . . Power Chain Reactions . | . . . . . . . . . . . . . . . . . . . . Missiles Intercepted . | . . . . . . . . . . . . . . . . . . . . Alert | -11 -10 -10 -9 -9 -8 -7 -7 -6 -5 -5 -5 -5 -5 -4 -4 -4 -3 -3 -2 ------- Run | Jun Mat Min Mat Min Mat Fac DSF Fac Fac Ext Cet Arc Hub Fac Upp Upp Res Qua Res Peak Influence 773 | 5 246 152 126 84 207 67 186 295 255 292 111 46 451 773 . . 352 361 220 Initial 91 | . 2 67 41 34 . 67 36 72 91 51 . . 3 59 . . 36 80 13 Average 155 | 4 60 110 85 64 71 67 129 106 139 130 59 14 141 304 . . 95 172 77 Maximum Alert Level 3 | . 1 . . . 1 . . 1 1 1 . . 2 3 . . 1 1 1 Low Security (%) 71 | 100 85 100 100 100 94 100 100 87 73 69 100 100 80 37 . . 82 63 94 Level 1 18 | . 14 . . . 5 . . 12 26 30 . . 10 27 . . 17 36 5 Level 2 9 | . . . . . . . . . . . . . 8 34 . . . . . Level 3 . | . . . . . . . . . . . . . . . . . . . . Level 4 . | . . . . . . . . . . . . . . . . . . . . Level 5 . | . . . . . . . . . . . . . . . . . . . . High Security . | . . . . . . . . . . . . . . . . . . . . Max Security . | . . . . . . . . . . . . . . . . . . . . Squads Dispatched 92 | . 2 . . . 2 . 1 8 3 3 . . 9 27 . . 17 11 9 Investigation 28 | . 2 . . . 1 . . 3 1 1 . . 1 6 . . 6 7 . Extermination 35 | . . . . . . . . 1 . . . . 3 14 . . 8 3 6 Reinforcement 20 | . . . . . . . 1 2 2 2 . . 2 4 . . 3 1 3 Assault 3 | . . . . . . . . . . . . . . 3 . . . . . Garrison 6 | . . . . . 1 . . 2 . . . . 3 . . . . . . Intercept . | . . . . . . . . . . . . . . . . . . . . Searches Triggered . | . . . . . . . . . . . . . . . . . . . . Construction Impeded 6 | . . . . . . . . . . 1 . . . 2 . . 1 . 2 Haulers Reinforced 4 | . . . . . . . . 1 . . . . 1 . . . 2 . . Active Scanning Responses . | . . . . . . . . . . . . . . . . . . . . Cargo Convoy Interrupts . | . . . . . . . . . . . . . . . . . . . . Stealth | -11 -10 -10 -9 -9 -8 -7 -7 -6 -5 -5 -5 -5 -5 -4 -4 -4 -3 -3 -2 --------- Run | Jun Mat Min Mat Min Mat Fac DSF Fac Fac Ext Cet Arc Hub Fac Upp Upp Res Qua Res Distress Signals 18 | . . 1 . . . . . 2 . 1 2 . 3 4 . . 1 1 3 Communications Jammed 33 | . . . . . . . . . . . . . . . . . 14 19 . Distress Signals 30 | . . . . . . . . . . . . . . . . . 12 18 . Times Spotted 490 | . 10 7 3 2 7 . 8 29 13 25 10 3 37 135 3 2 94 54 48 Peak Tracking Total 10 | . 3 3 3 2 3 . 3 5 5 7 5 3 3 8 3 1 6 8 10 Tactical Retreats 15 | . . . . . . . . . . 2 . . . 7 . . 4 2 . Traps | -11 -10 -10 -9 -9 -8 -7 -7 -6 -5 -5 -5 -5 -5 -4 -4 -4 -3 -3 -2 ------- Run | Jun Mat Min Mat Min Mat Fac DSF Fac Fac Ext Cet Arc Hub Fac Upp Upp Res Qua Res Traps Triggered 14 | . 2 . . . . . 1 1 . . . . 2 2 . . 3 . 3 Indirectly . | . . . . . . . . . . . . . . . . . . . . Trap Hack Attempts . | . . . . . . . . . . . . . . . . . . . . Triggered . | . . . . . . . . . . . . . . . . . . . . Disarmed 4 | . . . . . . . . . . 4 . . . . . . . . . Reprogrammed . | . . . . . . . . . . . . . . . . . . . . Reused . | . . . . . . . . . . . . . . . . . . . . Traps Extracted . | . . . . . . . . . . . . . . . . . . . . Installed . | . . . . . . . . . . . . . . . . . . . . Triggered 1 | . . . . . . . . . . . . . . . . . 1 . . Machines | -11 -10 -10 -9 -9 -8 -7 -7 -6 -5 -5 -5 -5 -5 -4 -4 -4 -3 -3 -2 ---------- Run | Jun Mat Min Mat Min Mat Fac DSF Fac Fac Ext Cet Arc Hub Fac Upp Upp Res Qua Res Machines Disabled 41 | . 1 . . . 2 . . 1 1 . 3 1 4 18 . . 6 3 1 Max in Single Turn 3 | . 1 . . . 1 . . 1 1 . 1 1 1 3 . . 2 1 1 Garrison Access 5 | . . . . . . . . 1 . . . . 1 1 . . 1 1 . Machines Repaired . | . . . . . . . . . . . . . . . . . . . . Machines Sabotaged . | . . . . . . . . . . . . . . . . . . . . Overloaded Fab Kills . | . . . . . . . . . . . . . . . . . . . . Hacking | -11 -10 -10 -9 -9 -8 -7 -7 -6 -5 -5 -5 -5 -5 -4 -4 -4 -3 -3 -2 --------- Run | Jun Mat Min Mat Min Mat Fac DSF Fac Fac Ext Cet Arc Hub Fac Upp Upp Res Qua Res Machines Accessed 75 | . 4 . . . 2 1 . 6 2 12 3 . 8 12 1 . 11 12 1 Terminals 59 | . 4 . . . 2 1 . 4 2 12 3 . 7 6 . . 9 9 . Fabricators 4 | . . . . . . . . 1 . . . . . 3 . . . . . Repair Stations 4 | . . . . . . . . . . . . . . 2 . . 1 . 1 Recycling Units . | . . . . . . . . . . . . . . . . . . . . Scanalyzers 2 | . . . . . . . . . . . . . . . . . . 2 . Garrison Access 5 | . . . . . . . . 1 . . . . 1 1 . . 1 1 . Total Hacks 215 | . 12 . . . 9 1 . 15 3 23 13 . 26 44 1 . 33 33 2 Successful 126 | . 9 . . . 4 1 . 4 1 19 9 . 17 22 1 . 16 21 2 Failed 89 | . 3 . . . 5 . . 11 2 4 4 . 9 22 . . 17 12 . Catastrophic 11 | . 1 . . . . . . 2 2 . 1 . 2 3 . . . . . Database Lockouts . | . . . . . . . . . . . . . . . . . . . . Manual 9 | . 1 . . . . . . . . 1 3 2 1 . . . . 1 . Terminals 167 | . 12 . . . 9 1 . 12 3 23 13 . 25 21 . . 25 23 . Fabricators 13 | . . . . . . . . 2 . . . . . 11 . . . . . Repair Stations 17 | . . . . . . . . . . . . . . 10 . . 5 . 2 Recycling Units . | . . . . . . . . . . . . . . . . . . . . Scanalyzers 9 | . . . . . . . . . . . . . . . . . . 9 . Garrison Access 8 | . . . . . . . . 1 . . . . 1 2 . . 3 1 . Terminal Hacks 103 | . 9 . . . 4 1 . 3 1 19 9 . 16 13 1 . 11 16 . Record 37 | . 3 . . . . . . . . 3 8 . 4 3 . . 4 12 . Part Schematic 1 | . . . . . . . . . . . . . 1 . . . . . . Robot Schematic 4 | . . . . . . . . 2 . . . . 1 . . . . 1 . Prototype ID Bank 3 | . 1 . . . . . . . . 1 . . . . . . . 1 . Open Door 11 | . . . . . . . . . . 9 1 . . . 1 . . . . Open DSF 3 | . . . . . . 1 . . . . . . . 1 . . 1 . . Level Access Points 3 | . . . . . . . . 1 . . . . 1 1 . . . . . Branch Access Points 2 | . . . . . . . . . . . . . . 1 . . 1 . . Emergency Access Points 3 | . . . . . 1 . . . . . . . 2 . . . . . . Terminal Index 3 | . . . . . 1 . . . . 1 . . . 1 . . . . . Alert Level 5 | . 1 . . . . . . . . 1 . . 2 1 . . . . . Locate Traps 8 | . . . . . . . . . 1 1 . . 2 1 . . 3 . . Disarm Traps 1 | . . . . . . . . . . 1 . . . . . . . . . Dispatch Records 1 | . . . . . . . . . . 1 . . . . . . . . . Maintenance Status 1 | . 1 . . . . . . . . . . . . . . . . . . Surveillance Status 1 | . . . . . . . . . . . . . 1 . . . . . . Transport Status 2 | . . . . . . . . . . . . . 1 . . . . 1 . Investigation Status 1 | . 1 . . . . . . . . . . . . . . . . . . Hauler Manifests 1 | . . . . . 1 . . . . . . . . . . . . . . Zone Layout 12 | . 2 . . . 1 . . . . 1 . . 1 4 . . 2 1 . Fabricator Hacks 5 | . . . . . . . . . . . . . . 5 . . . . . Load Schematic 3 | . . . . . . . . . . . . . . 3 . . . . . Build 2 | . . . . . . . . . . . . . . 2 . . . . . Repair Station Hacks 9 | . . . . . . . . . . . . . . 3 . . 4 . 2 Scan Component 5 | . . . . . . . . . . . . . . 2 . . 2 . 1 Repair 4 | . . . . . . . . . . . . . . 1 . . 2 . 1 Recycling Unit Hacks . | . . . . . . . . . . . . . . . . . . . . Scanalyzer 4 | . . . . . . . . . . . . . . . . . . 4 . Insert Component 3 | . . . . . . . . . . . . . . . . . . 3 . Analyze 1 | . . . . . . . . . . . . . . . . . . 1 . Garrison Access Hacks 5 | . . . . . . . . 1 . . . . 1 1 . . 1 1 . Seal Access 5 | . . . . . . . . 1 . . . . 1 1 . . 1 1 . Unauthorized Hacks . | . . . . . . . . . . . . . . . . . . . . Terminals . | . . . . . . . . . . . . . . . . . . . . Fabricators . | . . . . . . . . . . . . . . . . . . . . Repair Stations . | . . . . . . . . . . . . . . . . . . . . Recycling Units . | . . . . . . . . . . . . . . . . . . . . Scanalyzers . | . . . . . . . . . . . . . . . . . . . . Garrison Access . | . . . . . . . . . . . . . . . . . . . . Data Cores Recovered 2 | . . . . . . . . 1 . . . . . . . . 1 . . Used . | . . . . . . . . . . . . . . . . . . . . Hacking Detections 53 | . 3 . . . 2 . . 5 1 3 2 . 6 9 . . 10 11 1 Full Trace Events 28 | . 2 . . . 2 . . 3 1 1 . . 1 5 . . 6 7 . Feedback Events 1 | . . . . . . . . . . . . . . . . . . 1 . Corruption 1 | . . . . . . . . . . . . . . . . . . 1 . Feedback Blocked . | . . . . . . . . . . . . . . . . . . . . Robot Schematics Acquired 7 | . . . . . . . . 2 . . . . 1 . . . . 4 . Robots Built 4 | . . . . . . . . . . . . . . 4 . . . . . Authchips . | . . . . . . . . . . . . . . . . . . . . Time 151 | . . . . . . . . . . . . . . 151 . . . . . Total Robot Build Rating 18 | . . . . . . . . . . . . . . 18 . . . . . Part Schematics Acquired 3 | . . . . . . . . . . . . . 1 . . . . 2 . Parts Built . | . . . . . . . . . . . . . . . . . . . . Authchips . | . . . . . . . . . . . . . . . . . . . . Time . | . . . . . . . . . . . . . . . . . . . . Total Part Build Rating . | . . . . . . . . . . . . . . . . . . . . Parts Repaired 3 | . . . . . . . . . . . . . . 1 . . 1 . 1 Time 176 | . . . . . . . . . . . . . . 18 . . 124 . 34 Parts Recycled . | . . . . . . . . . . . . . . . . . . . . Recycled Matter . | . . . . . . . . . . . . . . . . . . . . Retrieved Matter . | . . . . . . . . . . . . . . . . . . . . Retrieved Components . | . . . . . . . . . . . . . . . . . . . . Parts Scanalyzed 2 | . . . . . . . . . . . . . . . . . . 2 . Part Schematics Acquired 1 | . . . . . . . . . . . . . . . . . . 1 . Parts Damaged . | . . . . . . . . . . . . . . . . . . . . Bothacking | -11 -10 -10 -9 -9 -8 -7 -7 -6 -5 -5 -5 -5 -5 -4 -4 -4 -3 -3 -2 ------------ Run | Jun Mat Min Mat Min Mat Fac DSF Fac Fac Ext Cet Arc Hub Fac Upp Upp Res Qua Res Used RIF Installer . | . . . . . . . . . . . . . . . . . . . . Robots Hacked . | . . . . . . . . . . . . . . . . . . . . Non-combat . | . . . . . . . . . . . . . . . . . . . . Combat . | . . . . . . . . . . . . . . . . . . . . Robot Hacks Applied . | . . . . . . . . . . . . . . . . . . . . Relay Couplers Released 13 | . . . . . . . . . . . . . . 5 . . 4 . 4 Programmers 13 | . . . . . . . . . . . . . . 5 . . 4 . 4 Fabnet Peak Effective % . | . . . . . . . . . . . . . . . . . . . . Robots Rewired . | . . . . . . . . . . . . . . . . . . . . Allies Hacked . | . . . . . . . . . . . . . . . . . . . . Hacks Repelled . | . . . . . . . . . . . . . . . . . . . . Allies | -11 -10 -10 -9 -9 -8 -7 -7 -6 -5 -5 -5 -5 -5 -4 -4 -4 -3 -3 -2 -------- Run | Jun Mat Min Mat Min Mat Fac DSF Fac Fac Ext Cet Arc Hub Fac Upp Upp Res Qua Res Total Allies 23 | . . . . 1 . . . . . 12 . . . 4 . . . . 6 Largest Group 6 | . . . . 1 1 . . . . 5 5 . . 3 . . . . 6 Highest-Rated Group 267 | . . . . 31 31 . . . . 267 248 . . 109 . . . . 84 Highest-Rated Ally 159 | . . . . 31 31 . . . . 159 146 . . 49 . . . . 15 Total Orders . | . . . . . . . . . . . . . . . . . . . . Ally Attacks 129 | . . . . . 5 . . . . 51 41 . . 17 . . . . 15 Total Damage 4042 | . . . . . 61 . . . . 1328 949 . . 1222 . . . . 482 Kills 21 | . . . . . 3 . . . . 8 4 . . 5 . . . . 1 Allies Corrupted 2 | . . . . . . . . . . 2 . . . . . . . . . Allies Melted . | . . . . . . . . . . . . . . . . . . . . Intel | -11 -10 -10 -9 -9 -8 -7 -7 -6 -5 -5 -5 -5 -5 -4 -4 -4 -3 -3 -2 ------- Run | Jun Mat Min Mat Min Mat Fac DSF Fac Fac Ext Cet Arc Hub Fac Upp Upp Res Qua Res Robot Analysis Total . | . . . . . . . . . . . . . . . . . . . . Derelict Logs Recovered 3 | . . . . . . . . . . . . . . . 3 . . . . Drone Launches 2 | . . . . . . . . . . . . . . . . . 2 . . Drone Recoveries . | . . . . . . . . . . . . . . . . . . . . Exploration | -11 -10 -10 -9 -9 -8 -7 -7 -6 -5 -5 -5 -5 -5 -4 -4 -4 -3 -3 -2 ------------- Run | Jun Mat Min Mat Min Mat Fac DSF Fac Fac Ext Cet Arc Hub Fac Upp Upp Res Qua Res Turns Passed 23537 | 135 718 145 94 430 387 9 613 1496 553 1207 426 89 2066 5398 886 111 5356 1870 1548 Spaces Moved 8964 | 69 397 59 37 256 193 5 252 582 266 570 203 34 883 2191 351 31 1381 727 477 Core 95 | 32 . . . . . . . . . . . . . . . . 61 . 2 Treads 7282 | 37 397 59 37 256 193 5 252 582 266 570 203 34 883 2191 351 31 935 . . Legs 1587 | . . . . . . . . . . . . . . . . . 385 727 475 Wheels . | . . . . . . . . . . . . . . . . . . . . Hover . | . . . . . . . . . . . . . . . . . . . . Flight . | . . . . . . . . . . . . . . . . . . . . Fastest Speed 50 | 50 160 160 160 160 160 160 160 163 162 160 160 160 160 161 244 244 187 187 190 Average Speed 203 | 167 160 160 164 160 160 160 164 163 162 165 160 160 170 195 244 246 309 195 229 Slowest Speed 2350 | 350 160 160 240 160 160 160 320 163 162 320 160 160 320 410 244 248 2350 330 1900 Overloaded Moves . | . . . . . . . . . . . . . . . . . . . . Propulsion Burnouts . | . . . . . . . . . . . . . . . . . . . . Robots Hopped . | . . . . . . . . . . . . . . . . . . . . Cave-ins Triggered 1 | . . . . . . . . . . . . . . 1 . . . . . Exploration Rate (%) 40 | 3 60 24 6 59 18 1 89 17 7 75 82 59 87 45 61 5 37 57 9 Regions Visited 19 Branch Regions 9 Pre-discovered Areas 1 | . . . . . . . . . . . . . . . 1 . . . . Known Exits Taken 18 | 1 1 1 1 1 1 1 . 1 1 1 1 1 1 1 1 1 1 1 . Unknown Exits Taken . | . . . . . . . . . . . . . . . . . . . . Scrap Searched 5 | . . . . 2 . . . . . . . . . . 3 . . . . Spaces Dug 27 | . . . . . . . . . . . . 1 6 19 . . 1 . . Terrain Destroyed 603 | . 30 . . . . . . 4 . 9 . 1 68 347 5 6 80 21 32 Melee 1 | . . . . . . . . . . . . 1 . . . . . . . Projectile 308 | . . . . . . . . 4 . 5 . . 68 109 5 6 58 21 32 AOE 293 | . 30 . . . . . . . . 4 . . . 238 . . 21 . . Terrain Rammed . | . . . . . . . . . . . . . . . . . . . . Walls Destroyed . | . . . . . . . . . . . . . . . . . . . . Machines Disabled . | . . . . . . . . . . . . . . . . . . . . Actions | -11 -10 -10 -9 -9 -8 -7 -7 -6 -5 -5 -5 -5 -5 -4 -4 -4 -3 -3 -2 --------- Run | Jun Mat Min Mat Min Mat Fac DSF Fac Fac Ext Cet Arc Hub Fac Upp Upp Res Qua Res Total 12091 | 83 430 81 52 270 247 6 432 1011 326 762 261 53 1214 2721 370 56 2043 944 729 Wait 1311 | . . . . . 26 . 143 290 3 126 37 3 159 119 . 13 311 22 59 Move 8944 | 68 396 58 36 255 192 4 251 581 265 569 202 33 882 2189 350 30 1380 726 477 Hop . | . . . . . . . . . . . . . . . . . . . . Pick Up 138 | 7 5 3 . 3 2 . 4 7 6 4 1 1 10 20 5 . 21 19 20 Fast Attach 98 | 6 . . . . . . . . 1 6 1 1 6 28 2 1 18 11 17 Attach 162 | 1 2 1 3 . 2 2 1 8 4 6 . 2 9 25 1 2 33 23 37 Detach 38 | . . 1 . . . . . 2 . 2 . 2 1 8 1 1 9 3 8 Swap 116 | . 1 1 2 3 4 . 5 5 1 6 1 1 14 15 2 . 28 18 9 Drop 107 | . 1 . . 4 2 . 8 5 . 5 . 2 20 8 2 2 23 11 14 Fire 1116 | 1 25 13 11 4 19 . 20 106 46 33 19 1 101 301 7 7 213 109 80 Melee 8 | . . . . . . . . . . . . 7 . 1 . . . . . Ram 1 | . . . . . . . . . . . . . . . . . . . 1 Kick 11 | . . . . . . . . . . . . . . . . . 2 2 7 Crush 40 | . . 4 . 1 . . . 7 . 5 . . 12 6 . . 5 . . Escape Stasis 1 | . . . . . . . . . . . . . . 1 . . . . . Rewire . | . . . . . . . . . . . . . . . . . . . . Trap . | . . . . . . . . . . . . . . . . . . . . Miscellaneous . | . . . . . . . . . . . . . . . . . . . . Route ------- -11/Junkyard -10/Materials (discovered 4 exits: *Mat x2 / *Min x2) -10/Mines -9/Materials -9/Mines -8/Materials -7/Factory -7/DSF -6/Factory (discovered 4 exits: *Fac x4) -5/Factory -5/Extension (discovered 2 exits: *Fac / *Cet) -5/Cetus -5/Archives -5/Hub_04(d) (discovered 4 exits: *Fac x4) -4/Factory (discovered 7 exits: Res x4 / *Upp x2 / Arm) -4/Upper Caves -4/Upper Caves -3/Research (discovered 3 exits: *Res / *Qua x2) -3/Quarantine -2/Research History --------- Turn | Location | Event 3 | -11/Junkyard | Identified exit to Materials 3 | -11/Junkyard | Discovered exit to Materials (range 15) 136 | -11/Junkyard | Entered Materials 136 | -10/Materials | Evolved 1 slot: Utility x1 306 | -10/Materials | Identified exit to Mines 306 | -10/Materials | Discovered exit to Mines (range 14) 310 | -10/Materials | Build established: Hacker-Mutant 477 | -10/Materials | Identified exit to Materials 477 | -10/Materials | Discovered exit to Materials (range 10) 606 | -10/Materials | Discovered exit to Materials (range 7) 711 | -10/Materials | Discovered exit to Mines (range 13) 854 | -10/Materials | Entered Mines 865 | -10/Mines | Assembled infested the area 961 | -10/Mines | Received a Rocket Launcher from a helpful Derelict 974 | -10/Mines | Discovered exit to Materials (range 11) 999 | -10/Mines | Entered Materials 999 | -9/Materials | Evolved 2 slots: Power x1, Utility x1 1030 | -9/Materials | Identified exit to Mines 1030 | -9/Materials | Discovered exit to Mines (range 11) 1093 | -9/Materials | Entered Mines 1103 | -9/Mines | Met a Derelict bent on vengeance 1376 | -9/Mines | Received a Mining Laser from a helpful Derelict 1513 | -9/Mines | Identified exit to Materials 1513 | -9/Mines | Discovered exit to Materials (range 2) 1523 | -9/Mines | Entered Materials 1523 | -8/Materials | Accompanied by 1 ally 1523 | -8/Materials | Evolved 2 slots: Utility x2 1877 | -8/Materials | Identified exit to Factory 1877 | -8/Materials | Discovered exit to Factory (range 3) 1887 | -8/Materials | Garrison activated, responded to threat 1910 | -8/Materials | Entered Factory 1910 | -7/Factory | Evolved 2 slots: Propulsion x1, Weapon x1 1917 | -7/Factory | Identified exit to DSF 1919 | -7/Factory | Entered DSF 1920 | -7/DSF | Joined Warlord attack on 0b10 via DSF 1941 | -7/DSF | Additional patrols routed to DSF 1974 | -7/DSF | Identified exit to Factory 1974 | -7/DSF | Discovered exit to Factory (range 15) 2223 | -7/DSF | Build established: Hacker-Gunner 2495 | -7/DSF | Found Prototype Device 2532 | -7/DSF | Entered Factory 2532 | -6/Factory | Evolved 2 slots: Utility x2 2533 | -6/Factory | Identified Active Sensor Suite 2820 | -6/Factory | Build established: Hacker-Skirmisher 3194 | -6/Factory | Garrison activated, responded to threat 3592 | -6/Factory | Identified exit to Factory 3645 | -6/Factory | Spotted B-75 Beast 3701 | -6/Factory | Destroyed B-75 Beast 4028 | -6/Factory | Entered another Factory area 4028 | -5/Factory | Evolved 2 slots: Propulsion x1, Utility x1 4275 | -5/Factory | Build established: Hacker-Gunner 4518 | -5/Factory | Lost 3 parts (2u1w) 4527 | -5/Factory | Destroyed 7 combat bots 4557 | -5/Factory | Identified exit to Extension 4557 | -5/Factory | Discovered exit to Extension (range 15) 4581 | -5/Factory | Entered Extension 4629 | -5/Extension | Rescued a captive Derelict 4651 | -5/Extension | Rescued a captive Derelict 4957 | -5/Extension | Rescued a captive Derelict 5028 | -5/Extension | Rescued a captive Derelict 5070 | -5/Extension | Rescued A7 5106 | -5/Extension | Spotted B-75 Beast 5114 | -5/Extension | Spotted B-75 Beast 5135 | -5/Extension | Destroyed B-75 Beast 5154 | -5/Extension | Destroyed B-75 Beast 5165 | -5/Extension | Lost 5 parts (3n1u1w) 5276 | -5/Extension | Rescued a captive Derelict 5276 | -5/Extension | Rescued a captive Derelict 5376 | -5/Extension | Rescued a captive Derelict 5377 | -5/Extension | Rescued a captive Derelict 5473 | -5/Extension | Build established: Hacker-Mutant 5490 | -5/Extension | Rescued a captive Derelict 5534 | -5/Extension | Rescued a captive Derelict 5548 | -5/Extension | Rescued a captive Derelict 5762 | -5/Extension | Identified exit to Factory 5762 | -5/Extension | Discovered exit to Factory (range 10) 5764 | -5/Extension | Identified exit to Cetus 5764 | -5/Extension | Discovered exit to Cetus (range 6) 5788 | -5/Extension | Entered Cetus 5788 | -5/Cetus | Accompanied by 5 allies (A7) 5793 | -5/Cetus | Acquired a Cetus Manufacturing Module code from A7 5816 | -5/Cetus | Spotted Cetus Guard 5816 | -5/Cetus | Spotted Cetus Guard 5827 | -5/Cetus | Allies destroyed Cetus Guard 5827 | -5/Cetus | Spotted Cetus Guard 5827 | -5/Cetus | Spotted Cetus Guard 5837 | -5/Cetus | Allies destroyed Cetus Guard 5849 | -5/Cetus | Destroyed Cetus Guard 5853 | -5/Cetus | Allies destroyed Cetus Guard 5967 | -5/Cetus | Escorted A7 to Cetus Mainframe 6063 | -5/Cetus | Build established: Hacker-Gunner 6071 | -5/Cetus | Extracted ID and sensor layout for unrecognized location from A7's data core 6130 | -5/Cetus | Identified exit to Archives 6130 | -5/Cetus | Discovered exit to Archives (range 16) 6181 | -5/Cetus | Spotted Cetus Guard 6181 | -5/Cetus | Spotted Cetus Guard 6214 | -5/Cetus | Entered Archives 6251 | -5/Archives | Unable to access archive contents 6264 | -5/Archives | Identified exit to Hub_04(d) 6264 | -5/Archives | Discovered exit to Hub_04(d) (range 15) 6303 | -5/Archives | Entered Hub_04(d) 6307 | -5/Hub_04(d) | Lost 4 parts (1p3u) 6602 | -5/Hub_04(d) | Spotted B-75 Beast 6734 | -5/Hub_04(d) | Destroyed B-75 Beast 7639 | -5/Hub_04(d) | Disrupted transfer network 7976 | -5/Hub_04(d) | Garrison activated, responded to threat 8042 | -5/Hub_04(d) | Destroyed 7 combat bots 8369 | -5/Hub_04(d) | Entered Factory 8369 | -4/Factory | Evolved 2 slots: Power x1, Utility x1 8465 | -4/Factory | Fabricated L-41 Fighter (x3) 8572 | -4/Factory | Fabricated D-63 Destroyer (x1) 10086 | -4/Factory | Identified exit to Research 10246 | -4/Factory | Destroyed 7 combat bots 10282 | -4/Factory | Repaired Adv. Cooling System 10468 | -4/Factory | Spotted B-86 Titan 10856 | -4/Factory | System corruption reached 10% 11119 | -4/Factory | First assault squad dispatched 11267 | -4/Factory | Lost 3 parts (2p1n) 11370 | -4/Factory | Lost 5 parts (2p1n2w) 11620 | -4/Factory | Build established: Hacker-Mutant 11698 | -4/Factory | Destroyed 8 combat bots 11711 | -4/Factory | Lost 6 parts (2p1n3w) 12488 | -4/Factory | Spotted B-86 Titan 12844 | -4/Factory | Found Unknown Device 12973 | -4/Factory | Core integrity fell below 50% 13147 | -4/Factory | Identified Quantum Capacitor 13244 | -4/Factory | Build established: Hacker-Gunner 13338 | -4/Factory | Crushed by falling debris 13440 | -4/Factory | Identified exit to Upper Caves 13440 | -4/Factory | Identified exit to Armory 13767 | -4/Factory | Entered Upper Caves 14026 | -4/Upper Caves | Learned location of Armory (-4) 14270 | -4/Upper Caves | Attracted the attention of an 0b10 checkpoint 14466 | -4/Upper Caves | Learned Research emergency access door positions 14510 | -4/Upper Caves | Learned Research emergency access door positions 14591 | -4/Upper Caves | Identified exit to Upper Caves 14591 | -4/Upper Caves | Discovered exit to Upper Caves (range 11) 14607 | -4/Upper Caves | Build established: Scavenger-Gunner 14653 | -4/Upper Caves | Entered another Upper Caves area 14717 | -4/Upper Caves | Discovered exit to Research (range 11) 14764 | -4/Upper Caves | Entered Research 14764 | -3/Research | Evolved 2 slots: Utility x2 15195 | -3/Research | Identified exit to Quarantine 15241 | -3/Research | Found Prototype Processor 15242 | -3/Research | Identified Spectral Analyzer 16282 | -3/Research | Build established: Hacker-Gunner 16286 | -3/Research | Repaired Mic. Antimatter Reactor 16664 | -3/Research | Build established: Scavenger-Gunner 16834 | -3/Research | Spotted B-86 Titan 17076 | -3/Research | Spotted B-86 Titan 17114 | -3/Research | Destroyed B-86 Titan 17140 | -3/Research | Lost 3 parts (1n2u) 17452 | -3/Research | Build established: Hacker-Gunner 17631 | -3/Research | Spotted B-86 Titan 17647 | -3/Research | Destroyed B-86 Titan 17729 | -3/Research | Core integrity fell below 50% 17732 | -3/Research | System corruption reached 10% 17762 | -3/Research | Lost 5 parts (1p3n1w) 17765 | -3/Research | Destroyed 9 combat bots 18011 | -3/Research | Build established: Scavenger-Mutant 18628 | -3/Research | Lost 4 parts (1p2u1w) 18886 | -3/Research | Build established: Scavenger-Gunner 20119 | -3/Research | Identified exit to Research 20119 | -3/Research | Discovered exit to Research (range 20) 20120 | -3/Research | Entered Quarantine 20341 | -3/Quarantine | Lost 4 parts (1p1u2w) 20354 | -3/Quarantine | Destroyed 8 combat bots 20737 | -3/Quarantine | Destroyed 8 combat bots 20802 | -3/Quarantine | Found Alien Artifact 20803 | -3/Quarantine | Identified Phase Redirector 20806 | -3/Quarantine | Lost 4 parts (1p1u2w) 20913 | -3/Quarantine | Cryocooling Duct disabled 20928 | -3/Quarantine | Ambient heat levels rising (+20) 20928 | -3/Quarantine | Non-combat units ordered to evacuate 21001 | -3/Quarantine | Lost 4 parts (1p1n2w) 21091 | -3/Quarantine | Core integrity fell below 20% 21363 | -3/Quarantine | Found Alien Artifact 21364 | -3/Quarantine | Identified Core Reset Matrix 21364 | -3/Quarantine | Used Core Reset Matrix 21368 | -3/Quarantine | Detected hypermatrix surge 21368 | -3/Quarantine | Sensed 5 artifacts in vicinity 21555 | -3/Quarantine | Lost 3 parts (1n1u1w) 21617 | -3/Quarantine | Found Phase Armor 21792 | -3/Quarantine | Build established: Scavenger-Mutant 21887 | -3/Quarantine | Discovered exit to Research (range 10) 21990 | -3/Quarantine | Entered Research 21990 | -2/Research | Evolved 2 slots: Weapon x2 22264 | -2/Research | Repaired Mic. Antimatter Reactor 22302 | -2/Research | Build established: Scavenger-Gunner 22711 | -2/Research | Lost 15 parts (2p4n5u4w) 22725 | -2/Research | System corruption reached 10% 23059 | -2/Research | Lost 6 parts (1p1n3u1w) 23517 | -2/Research | Core integrity fell below 50% 23523 | -2/Research | Emitted hypermatrix ping 23526 | -2/Research | Core integrity fell below 20% 23528 | -2/Research | Assembled emerged from beneath the floor 23538 | -2/Research | Self-destructed Last Messages --------------- 23528_ Slug penetrates as-64878. 23528_ as-64878 suffers critical hit (Destroy). 23528_ R-10 Processor collects Adv. Targeting Computer. 23529_ U-05 Engineer builds a Wall. 23531_ K-01 Serf collects debris. 23531_ U-05 Engineer builds a Wall. 23531_ as-64878 destroyed. 23532_ Slug penetrates as-00487. 23532_ Slug penetrates Wall. 23532_ P-80 Master system corrupted by crushing effect. 23532_ R-10 Processor collects Unknown Device. 23533_ as-34077 destroyed. 23534_ U-05 Engineer builds a Wall. 23535_ P-80 Master IFF system glitched. 23535_ Slug penetrates as-00487. 23535_ as-00487 destroyed. 23535_ K-01 Serf collects debris. 23535_ R-10 Processor collects Unknown Processor. 23536_ P-80 Master resets P-80 Master, system corruption cleaned. 23536_ P-80 Master system corrupted by crushing effect. Map ----- +----------------------------------------------------+ | ########### # % ! = #### """ #? | | + # #??# """ #? | | #####+##### [ + #??# #? | | #?# ## # #??# % #? | | #?# "# =!# #######/####? | | #?# "# !%# ## ! #? | | #?# ## *%%#################### #? | | ##+#### ## !=*!=^ #???????????# #? | | # ## == ^ #???????????# #? | | ######### [ ^ #???????????# #? | | ! | = ^^ #???????????#*!=! %*!#? | | ################ #??????????##! !=!!! !#? | | ##% #??????###??##?# #??????????#== [ ! !#? | | ## #??????????????# #################+###### | | ## #??????? ?????# * ! | | ## #??????? ????# | | ## #???????? ???# | | ## #????????? ??# | | ## #?????????? ?## ####################### | | ## #??????????? ?#^^ #??????????????????#??? | | ## #???????????? ## ##????????????????????? | | #? #????########+#;# a##############????????? | | ?? %=??? *%ap ??????? | | !*??? [%*!a[= % %??????? | | ?? != =**[!p% % % ??????? | | ??s !%* |!=@p%![ % u%% ??????? | | ######"#???#+######+#####!h*############+#???????? | | ?????? ?????????? ????#% %! #????????????????? | | ?????? ????????? ?????# R k #????????????????? | | ?????? ???????? ??????#""p #????????????????? | | ??????? ??????"""??????#"" !*%#????????????????? | | ????????????????????????#""R !* #????????????????? | | ????????????????????????#T !%%#????????????????? | | ????????????????????????#""p u#????????????????? | | ?????????????????????????""p% u #???????????????? | | ??????????????????????????" ##???????????????? | | ?????????????????????????? ##???????????????? | | ?????????????????????????? ! ##???????????????? | | ??????????????????????????+#######???????????????? | | ?????????????????????????????????????????????????? | | ?????????????????????????????????????????????????? | | ?????????????????????????????????????????????????? | | ?????????????????????????????????????????????????? | | ?????????????????????????????????????????????????? | | ??????????????????????????H??????????????????????? | | ?????????????????????????????????????????????????? | | ?????????????????????????????????????????????????? | | ?????????????????????????????????????????????????? | | ?????????????????????????????????????????????????? | | ?????????????????????????????????????????????????? | +----------------------------------------------------+ Best States ------------- Heat Dissipation 144 Coolant Potential 200 Energy Generation 69 Energy Capacity 1220 Matter Stores 850 Matter Capacity 1100 Sight Range 24 Robot Scan Range 20 Terrain Scan Range 14 Terrain Scan Density 10 Jamming Range 12 Power Amplification 20 Additional Mass Support 9 Base Temperature (-) 200 EM Shielding 3 Armor Coverage 600 Resistance: KI 35 Resistance: TH 50 Resistance: EX 60 Resistance: EM 35 Resistance: I 35 Resistance: S 35 Resistance: P 35 Power Shielding 90 Utility Shielding 33 Weapon Shielding 66 Weapon Cycling 20 Phase Shifting 15 Evasion (%) 55 Targeting Accuracy 40 Target Analysis 12 Core Analysis 6 Armor Integrity Analysis 40 Recoil Reduction 6 Matter Filtering 50 Particle Charging 25 Kinecelleration 40 Salvage Targeting 3 Offensive Hacking 20 Defensive Hacking 12 Item Schematics ----------------- None Robot Schematics ------------------ None Fabricated ------------ L-41 Fighter | x3 | -4/Factory D-63 Destroyer | x1 | -4/Factory Alien Tech Used ----------------- Phase Redirector Core Reset Matrix Phase Armor Achievements -------------- None Challenges ------------ None Game ------ Seed ThermalThermalLeg Manual? 0 Play Time 03:15:04 Cumulative 1648.4 hours Start 2023.12.27 @ 08:24:40 End 2023.12.28 @ 09:25:10 Sessions 7 Manual Loads 0 Difficulty Explorer Special Mode None Game No. 931 Rogue 62 Adventurer 0 Explorer 869 Win Type - Total 9 Types 9/0/0/0/0/0/0/0/0 Lore% 72 Gallery% 83 Achievement% 63 Wizard Run 0 Options --------- ASCII 0 Keyboard 0 Movement Mouse Keybinds 0 Fullscreen 1 Font 36/Smallcaps Map View 83x50 Tactical HUD 1 Map Filters NONE Filters NONE Steam 1 RUN: e14933fa-580c-4c95-b47f-717945c0e717